fUST/lending_fUST_20250825
["ID","MTS","AMOUNT","RATE_DAILY","PERIOD"]
[381128337,1756061440493,-151.0,0.000432,120]
[381128339,1756061440503,-151.0,0.000432,120]
[381128341,1756061440512,-151.0,0.000432,120]
[381128343,1756061440521,-151.0,0.000432,120]
[381128345,1756061440531,-151.0,0.000432,120]
[381128347,1756061440540,-151.0,0.000432,120]
[381128349,1756061440550,-151.0,0.000432,120]
[381128351,1756061440559,-151.0,0.000432,120]
[381128353,1756061440568,-151.0,0.000432,120]
[381128355,1756061440577,-151.0,0.000432,120]
[381128357,1756061440587,-151.0,0.000432,120]
[381128359,1756061440596,-151.0,0.000432,120]
[381128360,1756061440605,-500.0,0.00043484,30]
[381128363,1756061440615,-3259.56,0.000435,7]
[381128365,1756061440624,-200.0,0.00043729,120]
[381128367,1756061440633,-1163.88510047,0.00044072,43]
[381128368,1756061440643,-153.0,0.000446,120]
[381128370,1756061440652,-3748.21,0.000446,14]
[381128372,1756061440661,-500.0,0.0004463,30]
[381128374,1756061440670,-155.520907,0.00044765,15]
[381128376,1756061440680,-200.0,0.000451,120]
[381128378,1756061440689,-157.0,0.00045308,90]
[381128380,1756061440698,-200.0,0.00045684,120]
[381128382,1756061440708,-1163.88510047,0.00045798,47]
[381128384,1756061440717,-160.0,0.00046134,4]
[381128386,1756061440729,-419.174909,0.00046143,2]
[381128388,1756061440738,-1000.0,0.00046278,60]
[381128390,1756061440747,-244.0,0.00046278,60]
[381128392,1756061440757,-500.0,0.000466,30]
[381128394,1756061440766,-3259.56,0.000466,7]
[381128396,1756061440775,-155.520907,0.0004662,15]
[381128398,1756061440786,-11050.68,0.000467,14]
[381128400,1756061440799,-155.520907,0.00046849,20]
[381128402,1756061440809,-500.0,0.00046979,30]
[381128405,1756061440819,-153.0,0.00047397,30]
[381128407,1756061440828,-306.0,0.00047397,30]
[381128409,1756061440838,-153.0,0.00047397,30]
[381128411,1756061440848,-153.0,0.00047397,30]
[381128413,1756061440857,-154.0885349,0.00047397,30]
[381128415,1756061440868,-200.0,0.000474,120]
[381128417,1756061440878,-200.0,0.00047687,120]
[381128419,1756061440887,-200.0,0.00047687,120]
[381128421,1756061440896,-153.0,0.00048,120]
[381128423,1756061440905,-376.22310801,0.00048242,2]
[381128425,1756061440914,-200.0,0.00048407,120]
[381128427,1756061440923,-155.520907,0.00048501,120]
[381128429,1756061440933,-24791.1371894,0.0004869,4]
[381128431,1756061440942,-151.0,0.0004869,120]
[381128433,1756061440952,-151.0,0.0004869,120]
[381128435,1756061440961,-151.0,0.0004869,15]
[381128437,1756061440971,-151.0,0.0004869,15]
[381128439,1756061440982,-151.0,0.0004869,15]
[381128441,1756061440991,-151.0,0.0004869,120]
[381128443,1756061441001,-151.0,0.0004869,120]
[381128445,1756061441010,-151.0,0.0004869,120]
[381128447,1756061441020,-151.0,0.0004869,120]
[381128449,1756061441029,-291.396319,0.0004869,120]
[381128451,1756061441039,-151.0,0.0004869,120]
[381128453,1756061441049,-291.396319,0.0004869,120]
[381128455,1756061441058,-1220.290839,0.0004869,120]
[381128457,1756061441067,-291.396319,0.0004869,120]
[381128459,1756061441077,-151.0,0.0004869,120]
[381128461,1756061441086,-1220.290839,0.0004869,120]
[381128463,1756061441095,-1220.290839,0.0004869,120]
[381128465,1756061441104,-151.0,0.0004869,120]
[381128467,1756061441113,-1220.290839,0.0004869,120]
[381128469,1756061441122,-151.0,0.0004869,120]
[381128471,1756061441132,-5000.0,0.000487,120]
[381128473,1756061441141,-10000.0,0.000487,120]
[381128475,1756061441150,-160.0,0.00048847,2]
[381128477,1756061441159,-217.07852671,0.00048847,2]
[381128479,1756061441168,-151.0,0.0004889,120]
[381128481,1756061441178,-151.0,0.0004889,120]
[381128483,1756061441187,-151.0,0.0004889,14]
[381128485,1756061441197,-151.0,0.0004889,120]
[381128487,1756061441207,-151.0,0.0004889,120]
[381128489,1756061441216,-151.0,0.0004889,120]
[381128491,1756061441227,-151.0,0.0004889,120]
[381128493,1756061441236,-151.0,0.0004889,120]
[381128495,1756061441245,-151.0,0.0004889,120]
[381128497,1756061441255,-151.0,0.0004889,120]
[381128499,1756061441264,-151.0,0.0004889,120]
[381128501,1756061441274,-151.0,0.0004889,120]
[381128503,1756061441283,-151.0,0.0004889,120]
[381128505,1756061441292,-49582.2743787,0.0004889,4]
[381128507,1756061441302,-272736.9884578,0.000489,120]
[381128509,1756061441311,-151.0,0.000489,120]
[381128510,1756061441326,-151.0,0.000489,14]
[381128512,1756061441340,-151.0,0.000489,120]
[381128515,1756061441350,-151.0,0.000489,120]
[381128516,1756061441359,-151.0,0.000489,120]
[381128519,1756061441369,-151.0,0.000489,120]
[381128520,1756061441378,-151.0,0.000489,120]
[381128522,1756061441388,-151.0,0.000489,120]
[381128524,1756061441398,-151.0,0.000489,120]
[381128526,1756061441407,-151.0,0.000489,120]
[381128528,1756061441416,-151.0,0.000489,120]
[381128530,1756061441425,-151.0,0.000489,120]
[381128532,1756061441435,-151.0,0.000489,120]
[381128534,1756061441444,-151.0,0.000489,120]
[381128536,1756061441455,-151.0,0.000489,120]
[381128539,1756061441465,-152.649123,0.000489,120]
[381128541,1756061441475,-151.0,0.000489,120]
[381128542,1756061441485,-151.0,0.000489,120]
[381128545,1756061441495,-151.0,0.000489,120]
[381128547,1756061441504,-151.0,0.000489,120]
[381128549,1756061441513,-151.0,0.000489,120]
[381128551,1756061441526,-151.0,0.000489,120]
[381128553,1756061441535,-254.479868,0.000489,120]
[381128555,1756061441544,-151.0,0.000489,120]
[381128557,1756061441553,-151.0,0.000489,120]
[381128559,1756061441561,-151.0,0.000489,120]
[381128561,1756061441570,-151.0,0.000489,120]
[381128563,1756061441579,-151.0,0.000489,120]
[381128565,1756061441589,-151.0,0.000489,120]
[381128567,1756061441598,-151.0,0.000489,120]
[381128569,1756061441607,-151.0,0.000489,120]
[381128571,1756061441616,-151.0,0.000489,120]
[381128573,1756061441625,-151.0,0.000489,120]
[381128575,1756061441634,-151.0,0.000489,120]
[381128577,1756061441643,-151.0,0.000489,120]
[381128579,1756061441653,-151.0,0.000489,120]
[381128581,1756061441662,-261.632486,0.000489,120]
[381128583,1756061441671,-151.0,0.000489,120]
[381128585,1756061441680,-151.0,0.000489,120]
[381128587,1756061441689,-151.0,0.000489,120]
[381128589,1756061441698,-151.0,0.000489,120]
[381128590,1756061441707,-151.0,0.000489,120]
[381128593,1756061441717,-151.0,0.000489,120]
[381128595,1756061441728,-151.0,0.000489,120]
[381128597,1756061441737,-151.0,0.000489,120]
[381128599,1756061441747,-151.0,0.000489,120]
[381128601,1756061441756,-151.0,0.000489,120]
[381128603,1756061441765,-151.0,0.000489,120]
[381128605,1756061441775,-151.0,0.000489,120]
[381128607,1756061441784,-151.0,0.000489,120]
[381128609,1756061441794,-151.0,0.000489,120]
[381128611,1756061441808,-151.0,0.000489,120]
[381128613,1756061441817,-151.0,0.000489,120]
[381128614,1756061441829,-151.0,0.000489,120]
[381128616,1756061441839,-151.0,0.000489,120]
[381128619,1756061441849,-151.0,0.000489,120]
[381128620,1756061441859,-151.0,0.000489,120]
[381128622,1756061441870,-151.0,0.000489,120]
[381128624,1756061441879,-151.0,0.000489,120]
[381128626,1756061441889,-226.850946,0.000489,120]
[381128628,1756061441899,-151.0,0.000489,120]
[381128630,1756061441909,-151.0,0.000489,120]
[381128633,1756061441920,-222.17757,0.000489,120]
[381128635,1756061441930,-151.0,0.000489,120]
[381128637,1756061441941,-151.0,0.000489,120]
[381128639,1756061441951,-151.0,0.000489,120]
[381128641,1756061441962,-151.0,0.000489,30]
[381128643,1756061441972,-151.0,0.000489,120]
[381128645,1756061441982,-151.0,0.000489,120]
[381128647,1756061441991,-151.0,0.000489,120]
[381128649,1756061442000,-241.66252,0.000489,120]
[381128651,1756061442010,-151.0,0.000489,120]
[381128653,1756061442019,-151.0,0.000489,120]
[381128655,1756061442029,-151.0,0.000489,120]
[381128657,1756061442039,-151.0,0.000489,120]
[381128658,1756061442050,-151.0,0.000489,120]
[381128660,1756061442060,-151.0,0.000489,120]
[381128662,1756061442069,-151.0,0.000489,15]
[381128664,1756061442078,-151.0,0.000489,15]
[381128666,1756061442087,-151.0,0.000489,15]
[381128668,1756061442096,-151.0,0.000489,120]
[381128670,1756061442106,-151.0,0.000489,120]
[381128672,1756061442115,-151.0,0.000489,120]
[381128674,1756061442124,-151.0,0.000489,120]
[381128676,1756061442134,-291.396319,0.000489,120]
[381128678,1756061442143,-151.0,0.000489,120]
[381128681,1756061442152,-291.396319,0.000489,120]
[381128682,1756061442162,-1220.290839,0.000489,120]
[381128685,1756061442171,-291.396319,0.000489,120]
[381128687,1756061442181,-151.0,0.000489,120]
[381128688,1756061442190,-1220.290839,0.000489,120]
[381128691,1756061442200,-1220.290839,0.000489,120]
[381128693,1756061442209,-151.0,0.000489,120]
[381128695,1756061442220,-1220.290839,0.000489,120]
[381128697,1756061442232,-3993.99,0.00048917,120]
[381128699,1756061442243,-32384.38946678,0.00048986,120]
[381128701,1756061442252,-7401.95984478,0.00049,120]
[381128703,1756061442262,-1000.0,0.00049,120]
[381128705,1756061442271,-500.0,0.0004904,60]
[381128707,1756061442280,-1500.0,0.00049041,120]
[381128709,1756061442290,-1231.56,0.00049041,120]
[381128711,1756061442299,-160.0,0.00049094,5]
[381128713,1756061442308,-1000.0,0.0004919,2]
[381128715,1756061442318,-13231.0,0.000492,120]
[381128717,1756061442327,-20814.99935198,0.000492,120]
[381128762,1756061442673,-29185.00064802,0.000492,120]
[381128764,1756061442683,-3259.56,0.000492,7]
[381128787,1756061442885,-1163.88510047,0.00049251,54]
[381128790,1756061442904,-200.0,0.00049285,120]
[381128792,1756061442914,-3748.21,0.000493,14]
[381128794,1756061442923,-500.0,0.00049315,120]
[381128796,1756061442933,-500.0,0.00049315,120]
[381128798,1756061442942,-500.0,0.00049315,120]
[381128800,1756061442951,-500.0,0.00049315,120]
[381128802,1756061442960,-500.0,0.00049315,120]
[381128804,1756061442969,-500.0,0.00049315,120]
[381128806,1756061442978,-500.0,0.00049315,120]
[381128808,1756061442989,-500.0,0.00049315,120]
[381128810,1756061442998,-500.0,0.00049315,120]
[381128812,1756061443007,-500.0,0.00049315,120]
[381128814,1756061443017,-500.0,0.00049315,120]
[381128816,1756061443026,-500.0,0.00049315,120]
[381128818,1756061443035,-500.0,0.00049315,120]
[381128820,1756061443044,-420.53,0.00049315,120]
[381128822,1756061443053,-300.0,0.00049315,120]
[381128824,1756061443062,-500.0,0.00049329,18]
[381128826,1756061443072,-500.0,0.00049369,18]
[381128828,1756061443081,-8824.37513786,0.000494,120]
[381128830,1756061443090,-500.0,0.00049451,30]
[381128832,1756061443101,-2755.64889133,0.00049489,10]
[381128834,1756061443110,-8528.57889961,0.00049489,2]
[381128836,1756061443120,-155.520907,0.0004949,120]
[381128838,1756061443129,-277.6,0.000495,29]
[381128840,1756061443138,-11050.68,0.000495,14]
[381128842,1756061443147,-500.0,0.00049573,10]
[381128844,1756061443156,-1000.0,0.00049587,120]
[381128846,1756061443166,-200.0,0.00049588,60]
[381128848,1756061443176,-480.0,0.00049589,120]
[381128851,1756061443185,-480.0,0.00049589,120]
[381128853,1756061443194,-480.0,0.00049589,120]
[381128855,1756061443203,-480.0,0.00049589,120]
[381128857,1756061443213,-480.0,0.00049589,120]
[381128859,1756061443222,-480.0,0.00049589,30]
[381128861,1756061443234,-480.0,0.00049589,120]
[381128863,1756061443243,-480.0,0.00049589,120]
[381128865,1756061443253,-1765.2,0.00049589,120]
[381128867,1756061443262,-919.51,0.00049589,120]
[381128869,1756061443271,-480.0,0.00049589,120]
[381128871,1756061443280,-480.0,0.00049589,7]
[381128874,1756061443290,-480.0,0.00049589,120]
[381128877,1756061443299,-480.0,0.00049589,120]
[381128880,1756061443309,-203.727708,0.00049589,120]
[381128883,1756061443318,-483.7,0.00049589,120]
[381128886,1756061443327,-480.0,0.00049589,120]
[381128889,1756061443336,-1501.49,0.00049589,120]
[381128892,1756061443345,-480.0,0.00049589,120]
[381128895,1756061443355,-480.0,0.00049589,120]
[381128898,1756061443364,-480.0,0.00049589,120]
[381128900,1756061443373,-480.0,0.00049589,120]
[381128902,1756061443383,-480.0,0.00049589,120]
[381128904,1756061443392,-649.08,0.00049589,120]
[381128906,1756061443401,-480.0,0.00049589,120]
[381128908,1756061443410,-1671.27,0.00049589,120]
[381128910,1756061443419,-480.0,0.00049589,120]
[381128912,1756061443429,-480.0,0.00049589,120]
[381128915,1756061443438,-480.0,0.00049589,120]
[381128917,1756061443447,-480.0,0.00049589,120]
[381128919,1756061443456,-480.0,0.00049589,120]
[381128921,1756061443466,-480.0,0.00049589,120]
[381128923,1756061443475,-500.0,0.00049589,2]
[381128925,1756061443486,-278.60028851,0.00049589,2]
[381128967,1756061444225,-408.0,0.00040319,2]
[381128968,1756061444236,-151.0,0.0004869,120]
[381128969,1756061444245,-151.0,0.000489,120]
[381128970,1756061444254,-221.39971149,0.00049589,2]
[381128971,1756061444264,-500.0,0.00049589,2]
[381128972,1756061444273,-500.0,0.00049589,2]
[381128973,1756061444282,-500.0,0.00049589,2]
[381128974,1756061444292,-500.0,0.00049589,2]
[381128975,1756061444301,-500.0,0.00049589,2]
[381128976,1756061444310,-649.55345583,0.00049589,2]
[381128977,1756061444320,-337.13932336,0.00049589,120]
[381128978,1756061444330,-480.0,0.00049589,120]
[381128979,1756061444339,-151.0,0.00049589,14]
[381128980,1756061444349,-480.0,0.00049589,120]
[381128981,1756061444358,-480.0,0.00049589,120]
[381128982,1756061444367,-1402.33,0.00049589,120]
[381128983,1756061444377,-480.0,0.00049589,120]
[381128984,1756061444387,-480.0,0.00049589,120]
[381128985,1756061444396,-480.0,0.00049589,120]
[381128986,1756061444405,-249.167485,0.00049589,120]
[381128987,1756061444414,-480.0,0.00049589,120]
[381128988,1756061444423,-480.0,0.00049589,120]
[381128989,1756061444434,-480.0,0.00049589,120]
[381128990,1756061444443,-480.0,0.00049589,120]
[381128991,1756061444452,-480.0,0.00049589,120]
[381128992,1756061444461,-151.0,0.00049589,120]
[381128993,1756061444470,-235.844624,0.00049589,120]
[381128994,1756061444481,-151.0,0.00049589,14]
[381128995,1756061444490,-166.24769,0.00049589,14]
[381128996,1756061444500,-480.0,0.00049589,120]
[381128997,1756061444510,-151.0,0.00049589,120]
[381128998,1756061444519,-480.0,0.00049589,120]
[381128999,1756061444528,-480.0,0.00049589,120]
[381129000,1756061444537,-151.0,0.00049589,120]
[381129001,1756061444546,-385.21771025,0.00049589,120]
[381129002,1756061444571,-94.78228975,0.00049589,120]
[381129003,1756061444580,-480.0,0.00049589,120]
[381129004,1756061444589,-480.0,0.00049589,120]
[381129005,1756061444598,-480.0,0.00049589,120]
[381129006,1756061444607,-151.0,0.00049589,120]
[381129007,1756061444616,-151.0,0.00049589,120]
[381129008,1756061444625,-480.0,0.00049589,120]
[381129009,1756061444635,-480.0,0.00049589,120]
[381129010,1756061444644,-518.75,0.00049589,120]
[381129011,1756061444653,-480.0,0.00049589,120]
[381129012,1756061444662,-480.0,0.00049589,120]
[381129013,1756061444671,-480.0,0.00049589,120]
[381129014,1756061444681,-541.71,0.00049589,120]
[381129015,1756061444690,-740.65,0.00049589,120]
[381129016,1756061444699,-480.0,0.00049589,120]
[381129017,1756061444708,-1000.0,0.00049589,120]
[381129018,1756061444717,-725.45,0.00049589,120]
[381129019,1756061444727,-480.0,0.00049589,120]
[381129020,1756061444738,-151.0,0.00049589,120]
[381129021,1756061444747,-151.0,0.00049589,120]
[381129022,1756061444756,-151.0,0.00049589,120]
[381129023,1756061444766,-672.45,0.00049589,120]
[381129024,1756061444775,-851.96,0.00049589,120]
[381129025,1756061444784,-509.27,0.00049589,120]
[381129026,1756061444796,-480.0,0.00049589,120]
[381129027,1756061444807,-480.0,0.00049589,120]
[381129028,1756061444816,-480.0,0.00049589,120]
[381129029,1756061444825,-480.0,0.00049589,120]
[381129030,1756061444836,-441.6815004,0.00049589,120]
[381129031,1756061444846,-480.0,0.00049589,120]
[381129032,1756061444855,-480.0,0.00049589,120]
[381129033,1756061444865,-480.0,0.00049589,120]
[381129034,1756061444876,-480.0,0.00049589,120]
[381129035,1756061444885,-480.0,0.00049589,120]
[381129036,1756061444895,-480.0,0.00049589,120]
[381129037,1756061444904,-480.0,0.00049589,120]
[381129038,1756061444914,-558.39800339,0.00049589,120]
[381129039,1756061444923,-480.0,0.00049589,120]
[381129040,1756061444933,-480.0,0.00049589,120]
[381129041,1756061444942,-241.3568586,0.00049589,120]
[381129042,1756061444952,-480.0,0.00049589,120]
[381129043,1756061444961,-480.0,0.00049589,120]
[381129044,1756061444971,-480.0,0.00049589,120]
[381129045,1756061444980,-460.88925595,0.00049589,120]
[381129046,1756061444990,-480.0,0.00049589,120]
[381129047,1756061444999,-654.4,0.00049589,120]
[381129048,1756061445008,-1570.86028019,0.00049589,120]
[381129085,1756061445532,-408.0,0.00043319,2]
[381129087,1756061445543,-408.0,0.00046319,2]
[381129089,1756061445552,-151.0,0.0004869,120]
[381129091,1756061445561,-151.0,0.000489,120]
[381129093,1756061445570,-367.06848956,0.00049589,61]
[381129095,1756061445579,-220.63971981,0.00049589,120]
[381129097,1756061445588,-480.0,0.00049589,120]
[381129099,1756061445597,-442.20978828,0.00049589,120]
[381129101,1756061445607,-480.0,0.00049589,120]
[381129103,1756061445616,-480.0,0.00049589,120]
[381129105,1756061445626,-480.0,0.00049589,120]
[381129107,1756061445636,-480.0,0.00049589,90]
[381129109,1756061445645,-480.0,0.00049589,120]
[381129111,1756061445654,-1052.5,0.00049589,120]
[381129113,1756061445663,-480.0,0.00049589,30]
[381129115,1756061445672,-480.0,0.00049589,120]
[381129116,1756061445681,-480.0,0.00049589,120]
[381129118,1756061445690,-480.0,0.00049589,120]
[381129120,1756061445700,-906.66,0.00049589,120]
[381129122,1756061445709,-660.72,0.00049589,120]
[381129123,1756061445718,-480.0,0.00049589,120]
[381129125,1756061445727,-402.83693563,0.00049589,120]
[381129127,1756061445738,-480.0,0.00049589,120]
[381129130,1756061445747,-480.0,0.00049589,120]
[381129131,1756061445757,-480.0,0.00049589,120]
[381129133,1756061445766,-655.78,0.00049589,120]
[381129135,1756061445775,-480.0,0.00049589,120]
[381129138,1756061445786,-1401.71,0.00049589,120]
[381129139,1756061445797,-1603.82,0.00049589,120]
[381129140,1756061445806,-480.0,0.00049589,120]
[381129141,1756061445815,-596.32,0.00049589,120]
[381129142,1756061445825,-480.0,0.00049589,120]
[381129143,1756061445835,-480.0,0.00049589,120]
[381129144,1756061445845,-225.56944596,0.00049589,120]
[381129146,1756061445854,-1466.13,0.00049589,120]
[381129148,1756061445866,-480.0,0.00049589,120]
[381129150,1756061445876,-480.0,0.00049589,120]
[381129152,1756061445885,-543.26,0.00049589,120]
[381129154,1756061445895,-480.0,0.00049589,120]
[381129156,1756061445904,-480.0,0.00049589,120]
[381129158,1756061445914,-480.0,0.00049589,120]
[381129160,1756061445923,-483.71360092,0.00049589,120]
[381129161,1756061445933,-480.0,0.00049589,120]
[381129162,1756061445942,-480.0,0.00049589,120]
[381129163,1756061445951,-480.0,0.00049589,120]
[381129165,1756061445961,-480.0,0.00049589,120]
[381129167,1756061445970,-480.0,0.00049589,120]
[381129168,1756061445979,-480.0,0.00049589,120]
[381129170,1756061445990,-480.0,0.00049589,120]
[381129172,1756061445999,-480.0,0.00049589,120]
[381129174,1756061446008,-509.88,0.00049589,120]
[381129175,1756061446018,-480.0,0.00049589,120]
[381129176,1756061446026,-480.0,0.00049589,120]
[381129177,1756061446036,-480.0,0.00049589,120]
[381129178,1756061446045,-480.0,0.00049589,120]
[381129179,1756061446055,-556.4121092,0.00049589,120]
[381129180,1756061446065,-864.06,0.00049589,120]
[381129181,1756061446074,-480.0,0.00049589,120]
[381129182,1756061446083,-480.0,0.00049589,120]
[381129183,1756061446093,-480.0,0.00049589,120]
[381129184,1756061446103,-151.0,0.00049589,120]
[381129185,1756061446112,-1252.37,0.00049589,120]
[381129186,1756061446121,-480.0,0.00049589,120]
[381129187,1756061446131,-528.61,0.00049589,120]
[381129188,1756061446141,-480.0,0.00049589,120]
[381129189,1756061446150,-605.22560838,0.00049589,120]
[381129257,1756061447255,-160.0,0.00031044,2]
[381129258,1756061447266,-291.396319,0.0004869,120]
[381129259,1756061447276,-104.98426335,0.000489,120]
[381129260,1756061447288,-186.41205565,0.000489,120]
[381129261,1756061447297,-418.60439162,0.00049589,120]
[381129262,1756061447308,-672.19,0.00049589,120]
[381129263,1756061447318,-61.66597621,0.00049589,120]
[381129264,1756061447330,-418.33402379,0.00049589,120]
[381129265,1756061447339,-480.0,0.00049589,120]
[381129266,1756061447349,-374.17476121,0.00049589,120]
[381130636,1756061572896,880.07950317,0.00021627,2]
[381130637,1756061573037,880.07950317,0.00023353,2]
[381130638,1756061573341,880.07950317,0.0002508,2]
[381130639,1756061573552,880.07950317,0.00026806,6]
[381130640,1756061740994,762.73556942,0.00021627,2]
[381130641,1756061741200,762.73556942,0.00023353,2]
[381130642,1756061741314,762.7355695,0.000199,2]
[381130643,1756061741655,762.73556942,0.0002508,2]
[381130644,1756061912532,1026.68607546,0.000199,2]
[381130645,1756061912611,1026.68607537,0.00026806,6]
[381130646,1756061912729,1026.68607537,0.00021627,2]
[381130647,1756061913152,1026.68607537,0.00023353,2]
[381130648,1756061913693,1026.68607537,0.0002508,2]
[381130649,1756062081539,855.57172962,0.000199,2]
[381130650,1756062081708,855.57172947,0.00026806,6]
[381130651,1756062081753,855.57172947,0.00021627,2]
[381130652,1756062082163,855.57172947,0.0002508,2]
[381130653,1756062082309,855.57172947,0.00023353,2]
[381130654,1756062263023,712.77220492,0.000199,2]
[381130655,1756062263140,712.77220472,0.00021627,2]
[381130656,1756062263718,712.77220472,0.00023353,2]
[381130657,1756062263760,712.77220472,0.00026806,6]
[381130658,1756062310838,410.140764,0.00013699,2]
[381130659,1756062311081,410.140764,0.00020187,2]
[381130660,1756062311309,410.140764,0.00026676,2]
[381130662,1756062433497,637.9553243,0.000199,2]
[381130663,1756062433555,637.9553241,0.00023353,2]
[381130664,1756062434161,637.9553241,0.00021627,2]
[381130665,1756062434336,637.9553241,0.00026806,6]
[381130666,1756062434428,637.9553241,0.0002508,2]
[381130679,1756062602082,531.62943675,0.00021627,2]
[381130680,1756062602259,531.62943675,0.00026806,6]
[381130681,1756062602695,531.62943675,0.00023353,2]
[381130682,1756062602787,531.62943675,0.0002508,2]
[381130683,1756062603049,531.62943675,0.000199,2]
[381130706,1756062632280,-217.63,0.00028151,15]
[381130708,1756062632291,-155.53,0.00028151,15]
[381130710,1756062632301,-155.53,0.00028251,15]
[381130712,1756062632311,-155.53,0.00028351,15]
[381130714,1756062632320,-155.55,0.00028451,15]
[381130716,1756062632330,-531.62943675,0.00028533,10]
[381130718,1756062632341,-1000.0,0.00030006,30]
[381130720,1756062632351,-1789.776865,0.00030166,2]
[381130722,1756062632362,-160.0,0.00030166,2]
[381130723,1756062632371,-307.550522,0.00030224,2]
[381130725,1756062632381,-531.62943675,0.00030259,13]
[381130726,1756062632395,-400.0,0.00030927,2]
[381130728,1756062632405,-230.0,0.00030927,2]
[381130729,1756062632415,-12403.49743958,0.00030928,2]
[381130731,1756062632425,-2000.0,0.00030928,30]
[381130732,1756062632436,-500.0,0.00030929,2]
[381130735,1756062632445,-500.0,0.00030929,2]
[381130738,1756062632454,-500.0,0.00030929,2]
[381130740,1756062632465,-500.0,0.00030929,2]
[381130743,1756062632476,-500.0,0.00030929,2]
[381130745,1756062632486,-500.0,0.00030929,2]
[381130748,1756062632495,-500.0,0.00030929,2]
[381130750,1756062632505,-500.0,0.00030929,2]
[381130753,1756062632515,-500.0,0.00030929,2]
[381130755,1756062632525,-500.0,0.00030929,2]
[381130758,1756062632535,-500.0,0.00030929,2]
[381130760,1756062632545,-500.0,0.00030929,2]
[381130763,1756062632556,-389.19287169,0.00030929,2]
[381130765,1756062632567,-151.0,0.00031044,2]
[381130767,1756062632577,-200.0,0.00031306,120]
[381130769,1756062632587,-215.99145658,0.00032251,2]
[381130770,1756062632597,-3850.8535368,0.00032272,2]
[381130772,1756062632606,-1207.27364248,0.0003261,2]
[381130773,1756062632616,-414.62400697,0.0003271,2]
[381130775,1756062632627,-500.0,0.0003271,2]
[381130777,1756062632637,-500.0,0.0003271,2]
[381130778,1756062632647,-666.0,0.00032711,2]
[381130780,1756062632657,-15932.5130063,0.00032792,2]
[381130781,1756062632666,-500.0,0.00032801,2]
[381130782,1756062632675,-243.30859253,0.00032801,2]
[381130784,1756062632685,-500.0,0.00032801,2]
[381130786,1756062632695,-253.10547934,0.00032801,2]
[381130787,1756062632704,-500.0,0.00032801,2]
[381130789,1756062632714,-72995.4540644,0.00032802,2]
[381130790,1756062632723,-5413.7186616,0.00032837,2]
[381130792,1756062632733,-500.0,0.000329,5]
[381130793,1756062632743,-410.140764,0.00033165,2]
[381130795,1756062632753,-560.0,0.00033301,2]
[381130797,1756062632762,-307.550522,0.00033649,2]
[381130798,1756062632772,-531.62943675,0.00033712,21]